Workbook

Sheet About this workbook
B2: Purpose: calculate NPV for 10tpd ammonia plant
B5: 2022-11-18 | C5: v.1.3 | D5: Pfromm | F5: Pick CAPEX financed via loan paid back at fixed interest rate, or equity financing
F6: CAPEX from Malmali et al scaled to 10tpd corrected for 2022. CAPEX scaled linearly for electrolysis. Other CAPEX sheets for info/reference only
F7: Enter input in yellow highlight fields
F8: Cost of manufacturing modified from Turton
F9: Loan payments subtracted from revenue R, PRE TAX, if loan option is selected
B11: 2022-11-21 | D11: Pfromm | F11: Added Sheet H B Capex from Ammoniaenergy, which confirms the 12MM for 10 tpd plant
F12: No interactions with other sheets.
B14: 2023-02-06 | D14: Pfromm | F14: Implemented daily production as input, use goal/seek to determine NPV=0, to determine IRR
F15: Number of full time positions now according to Turton et al.
B18: 2023-02-14 | D18: Pfromm | F18: Posted version 1.1 to INFEWS folder INFEWS 2-14-23
F19: New version 1.2 started
B21: 2023-10-18 | D21: Pfromm | F21: removed loan option, renamed file "What NH3 production pays off no loan version 1.0", added sheet with overview of historic NH3 prices "Ammonia price history"
B23: 2023-10-25 | D23: Pfromm | F23: added some comments in "Discounted cash flow" sheet, renamed workbook to "What NH3 Production pays off 2.0", added disclaimer sheet "Disclaimer"
B25: 2024-02-08 | D25: Pfromm | F25: start adding userform for data input

Sheet Disclaimer
B4: 2023-10-25 | D4: Pfromm | F4: All calculations in this workbook may contain errors, although the overall results were verified and benchmarked vs. literature data (from actual plant data for 1000 tpd plus scale, paper studies for small scale) particularly for CAPEX.
F5: It is highly recommended to work through the appropriate chapters in the generally accepted and widely refrenced Textbook on which this is based.
F6: Note that very important parameters such as ammonia price, and energy price are static in this workbook (see Textbook). These parameters may be highly (ammonia price) or slowly (energy price) variable, and unpredictably so, with time.
F7: Even a Monte Carlo analysis of economics (easily performed, see Textbook) can never encompass disruptive changes such as wars, politically motivated pressures on markets, precipitous climate change impacts, etc.
F8: Therefore Monte Carlo is not done here.

Sheet Textbook

Sheet Output graph

Sheet Discounted cash flow
C1: Ammonia Plant producing selected tonnes per day (user input) of anhydrous ammonia
C2: INFLATION NOT TAKEN IN ACCOUNT (reasoning see Textbook). TIME VALUE OF MONEY IS TAKEN IN ACCOUNT.
A4: Manual INPUTS: | C4: Tax credit per kg NH3 (for 10 years only) | D4: ='Renewable H2 Tax Credit'!C9 -> 0.1056 | E4: $/kg NH3 (converted from H2 tax credit)
A5: Yellow Highlights | C5: Desired production rate | D5: 10 | E5: Tonnes NH3 per day (metric tons)
C6: Cap. Cost calculated | D6: =(12000000*0.4)*(D5/10)^0.6+(12000000*0.6)*(D5/10)^0.7 -> 12000000
C7: Ammonia sells for U.S.$ | D7: 1100 | E7: per tonne
C8: Tax rate | D8: 0.3 | E8: =D8*100 -> 30 | F8: %
C9: Discount rate | D9: 0.05 | E9: =D9*100 -> 5 | F9: %p.a.
C11: Name Plate production | D11: =D5 -> 10 | E11: tpd ammonia
C12: Days per year at Name Plate capacity | D12: 360 | E12: =D12*24 -> 8640 | F12: hrs/yr
C13: Cost of Land | D13: 25000
C14: Cost of Electrical Energy | D14: 0.02 | E14: /kWh | L14: For comparison: simple investment, constant annual interest, no inflation
L15: =D6 -> 12000000 | M15: invested at fixed | N15: 4 | O15: %interest per year:
L16: =-FV((N15/100), N16,0,L15,1) -> 38920770.12 | M16: after | N16: =C58 -> 30 | O16: years
L17: (compound interest, no inflation)
C18: Additional parameters for review | L18: verified via | M18: https://www.calculator.net/future-value-calculator.html
C19: Annual Income | D19: =D12*D11*D7 -> 3960000
C20: MACRS depreciation was used, 9.5 year class life, 5 year recovery
C21: Number of full time positions | D21: ='Cost of Manuf COMd modified'!F26 -> 3 | E21: either per Textbook, or manual
C22: Cost per Position per year | D22: 80000
B23: Results | C23: NPV | D23: =M58 -> 1486740.16
C24: at | D24: =LOOKUP(2,1/(NOT(ISBLANK(C:C))),C:C) -> 30 | E24: years
C25: Present Value Ratio PVR | D25: =(SUM(L31:L58)/(-SUM(L28:L30))) -> 1.138921287
C27: End of Year | D27: Investment | E27: dK Depreciation | F27: FCIL-sum dK | G27: Revenue R per yr from sale of NH3 | H27: Cost of Manufacturing COMd | I27: ((R-COM-dK)*(1-t)+dK)+H2credit | J27: Cash Flow | K27: Cumul Cash Flow non-discounted | L27: Discounted Cash Flow | M27: Cumul Disc Cash Flow
C28: 0 | D28: =D13*-1 -> -25000 | F28: =$D$6 -> 12000000 | I28: =((G28-H28-E28)*(1-$D$8)+E28)+$D$5*$D$12*'Renewable H2 Tax Credit'!C6*1000 -> 0 | J28: =D28 -> -25000 | K28: =J28 -> -25000 | L28: =D28 -> -25000 | M28: =L28 -> -25000
C29: 1 | D29: =-0.6*$D$6*(1-$D$16) -> -7200000 | F29: =$D$6 -> 12000000 | G29: =$D$15*$D$16 -> 0 | I29: 0 | J29: =D29+$D$16*G29 -> -7200000 | K29: =K28+J29 -> -7225000 | L29: =J29/((1+$D$9)^(ROW()-27)) -> -6530612.245 | M29: =M28+L29 -> -6555612.245
C30: 2 | D30: =-0.4*$D$6*(1-$D$16) -> -4800000 | F30: =$D$6 -> 12000000 | G30: =$D$15*$D$16 -> 0 | I30: =((G30-H30-E30)*(1-$D$8)+E30)+$D$5*$D$12*'Renewable H2 Tax Credit'!C8*1000 -> 0 | J30: =D30+$D$16*G30 -> -4800000 | K30: =K29+J30 -> -12025000 | L30: =J30/((1+$D$9)^(ROW()-27)) -> -4146420.473 | M30: =M29+L30 -> -10702032.72
B31: Startup beginning of year: | C31: 3 | E31: =$D$6*0.2 -> 2400000 | F31: =D6-E31 -> 9600000 | G31: =(($D$19+$D$15*$D$16)-$D$16*$D$15) -> 3960000 | H31: ='Cost of Manuf COMd modified'!$J$16 -> 3168016.32 | I31: =((G31-H31-E31)*(1-$D$8)+E31)+$D$5*$D$12*'Renewable H2 Tax Credit'!$C$9*1000 -> 1654548.576 | J31: =I31 -> 1654548.576 | K31: -10370451.42 | L31: 1361201.208 | M31: -9340831.51
C32: 4 | E32: =$D$6*0.32 -> 3840000 | F32: =D6-E31-E32 -> 5760000 | G32: =($D$19+$D$15*$D$16)-$D$16*$D$15 -> 3960000 | H32: ='Cost of Manuf COMd modified'!$J$16 -> 3168016.32 | I32: =((G32-H32-E32)*(1-$D$8)+E32)+$D$5*$D$12*'Renewable H2 Tax Credit'!$C$9*1000 -> 2086548.576 | J32: =I32 -> 2086548.576 | K32: -8283902.848 | L32: 1634865.407 | M32: -7705966.103
C33: 5 | E33: =$D$6*0.192 -> 2304000 | F33: =D6-E31-E32-E33 -> 3456000 | G33: 3960000 | H33: ='Cost of Manuf COMd modified'!$J$16 -> 3168016.32 | I33: =((G33-H33-E33)*(1-$D$8)+E33)+$D$5*$D$12*'Renewable H2 Tax Credit'!$C$9*1000 -> 1625748.576 | J33: 1625748.576 | K33: -6658154.272 | L33: 1213158.618 | M33: -6492807.484
C34: 6 | E34: =$D$6*0.1152 -> 1382400 | F34: =D6-E31-E32-E33-E34 -> 2073600 | G34: 3960000 | H34: ='Cost of Manuf COMd modified'!$J$16 -> 3168016.32 | I34: =((G34-H34-E34)*(1-$D$8)+E34)+$D$5*$D$12*'Renewable H2 Tax Credit'!$C$9*1000 -> 1349268.576 | J34: 1349268.576 | K34: -5308885.696 | L34: 958899.9863 | M34: -5533907.498
C35: 7 | E35: =$D$6*0.1152 -> 1382400 | F35: =D6-E31-E32-E33-E34-E35 -> 691200 | G35: 3960000 | H35: ='Cost of Manuf COMd modified'!$J$16 -> 3168016.32 | I35: =((G35-H35-E35)*(1-$D$8)+E35)+$D$5*$D$12*'Renewable H2 Tax Credit'!$C$9*1000 -> 1349268.576 | J35: 1349268.576 | K35: -3959617.12 | L35: 913238.0822 | M35: -4620669.416
C36: 8 | E36: =$D$6*0.0576 -> 691200 | F36: =D6-E31-E32-E33-E34-E35-E36 -> 0 | G36: 3960000 | H36: ='Cost of Manuf COMd modified'!$J$16 -> 3168016.32 | I36: =((G36-H36-E36)*(1-$D$8)+E36)+$D$5*$D$12*'Renewable H2 Tax Credit'!$C$9*1000 -> 1141908.576 | J36: 1141908.576 | K36: -2817708.544 | L36: 736084.4496 | M36: -3884584.966
C37: 9 | G37: 3960000 | H37: ='Cost of Manuf COMd modified'!$J$16 -> 3168016.32 | I37: =((G37-H37-E37)*(1-$D$8)+E37)+$D$5*$D$12*'Renewable H2 Tax Credit'!$C$9*1000 -> 934548.576 | J37: 934548.576 | K37: -1883159.968 | L37: 573731.7569 | M37: -3310853.209
C38: 10 | G38: 3960000 | H38: ='Cost of Manuf COMd modified'!$J$16 -> 3168016.32 | I38: =((G38-H38-E38)*(1-$D$8)+E38)+$D$5*$D$12*'Renewable H2 Tax Credit'!$C$9*1000 -> 934548.576 | J38: 934548.576 | K38: -948611.392 | L38: 546411.197 | M38: -2764442.012
C39: 11 | G39: 3960000 | H39: ='Cost of Manuf COMd modified'!$J$16 -> 3168016.32 | I39: =((G39-H39-E39)*(1-$D$8)+E39)+$D$5*$D$12*'Renewable H2 Tax Credit'!$C$9*1000 -> 934548.576 | J39: 934548.576 | K39: =K38+J39 -> -14062.816 | L39: 520391.6162 | M39: -2244050.396
C40: 12 | G40: 3960000 | H40: ='Cost of Manuf COMd modified'!$J$16 -> 3168016.32 | I40: =((G40-H40-E40)*(1-$D$8)+E40) -> 554388.576 | J40: 554388.576 | K40: 540325.76 | L40: 294004.0984 | M40: -1950046.298
C41: 13 | G41: 3960000 | H41: ='Cost of Manuf COMd modified'!$J$16 -> 3168016.32 | I41: =((G41-H41-E41)*(1-$D$8)+E41) -> 554388.576 | J41: 554388.576 | K41: 1094714.336 | L41: 280003.9032 | M41: -1670042.394
C42: 14 | G42: 3960000 | H42: ='Cost of Manuf COMd modified'!$J$16 -> 3168016.32 | I42: 554388.576 | J42: 554388.576 | K42: 1649102.912 | L42: 266670.384 | M42: -1403372.01
C43: 15 | G43: 3960000 | H43: ='Cost of Manuf COMd modified'!$J$16 -> 3168016.32 | I43: 554388.576 | J43: 554388.576 | K43: 2203491.488 | L43: 253971.7943 | M43: -1149400.216
C44: 16 | G44: 3960000 | H44: ='Cost of Manuf COMd modified'!$J$16 -> 3168016.32 | I44: 554388.576 | J44: 554388.576 | K44: 2757880.064 | L44: 241877.8994 | M44: -907522.3167
C45: 17 | G45: 3960000 | H45: ='Cost of Manuf COMd modified'!$J$16 -> 3168016.32 | I45: 554388.576 | J45: 554388.576 | K45: 3312268.64 | L45: 230359.9042 | M45: -677162.4126
C46: 18 | G46: 3960000 | H46: ='Cost of Manuf COMd modified'!$J$16 -> 3168016.32 | I46: 554388.576 | J46: 554388.576 | K46: 3866657.216 | L46: 219390.3849 | M46: -457772.0277
C47: 19 | G47: 3960000 | H47: ='Cost of Manuf COMd modified'!$J$16 -> 3168016.32 | I47: 554388.576 | J47: 554388.576 | K47: 4421045.792 | L47: 208943.2237 | M47: -248828.804
C48: 20 | G48: 3960000 | H48: ='Cost of Manuf COMd modified'!$J$16 -> 3168016.32 | I48: 554388.576 | J48: 554388.576 | K48: 4975434.368 | L48: 198993.5464 | M48: -49835.25757
C49: 21 | G49: 3960000 | H49: ='Cost of Manuf COMd modified'!$J$16 -> 3168016.32 | I49: 554388.576 | J49: 554388.576 | K49: =K48+J49 -> 5529822.944 | L49: 189517.6632 | M49: =M48+L49 -> 139682.4057
C50: 22 | G50: 3960000 | H50: ='Cost of Manuf COMd modified'!$J$16 -> 3168016.32 | I50: 554388.576 | J50: 554388.576 | K50: 6084211.52 | L50: 180493.0126 | M50: 320175.4183
C51: 23 | G51: 3960000 | H51: ='Cost of Manuf COMd modified'!$J$16 -> 3168016.32 | I51: 554388.576 | J51: 554388.576 | K51: 6638600.096 | L51: 171898.1072 | M51: 492073.5255
C52: 24 | G52: 3960000 | H52: ='Cost of Manuf COMd modified'!$J$16 -> 3168016.32 | I52: 554388.576 | J52: 554388.576 | K52: 7192988.672 | L52: 163712.4831 | M52: 655786.0086
C53: 25 | G53: 3960000 | H53: ='Cost of Manuf COMd modified'!$J$16 -> 3168016.32 | I53: 554388.576 | J53: 554388.576 | K53: 7747377.248 | L53: 155916.6506 | M53: 811702.6592
C54: 26 | G54: 3960000 | H54: ='Cost of Manuf COMd modified'!$J$16 -> 3168016.32 | I54: 554388.576 | J54: 554388.576 | K54: 8301765.824 | L54: 148492.0482 | M54: 960194.7073
C55: 27 | G55: 3960000 | H55: ='Cost of Manuf COMd modified'!$J$16 -> 3168016.32 | I55: 554388.576 | J55: 554388.576 | K55: 8856154.4 | L55: 141420.9982 | M55: 1101615.706
C56: 28 | G56: 3960000 | H56: ='Cost of Manuf COMd modified'!$J$16 -> 3168016.32 | I56: 554388.576 | J56: 554388.576 | K56: 9410542.976 | L56: 134686.665 | M56: 1236302.371
C57: 29 | G57: 3960000 | H57: ='Cost of Manuf COMd modified'!$J$16 -> 3168016.32 | I57: 554388.576 | J57: 554388.576 | K57: 9964931.552 | L57: 128273.0143 | M57: 1364575.385
C58: 30 | D58: =D13 -> 25000 | G58: 3960000 | H58: ='Cost of Manuf COMd modified'!$J$16 -> 3168016.32 | I58: 554388.576 | J58: =I58 -> 554388.576 | K58: 10519320.13 | L58: 122164.7755 | M58: 1486740.16

Sheet Cost of Manuf COMd modified
C3: Cost of Manufacturing, no discount COMd
C5: Fixed Capital Investment FCI | F5: ='Discounted cash flow'!D6 -> 12000000
C6: Raw Materials | F6: 10000 | G6: per year | H6: estimate
C7: Waste Treatment | F7: 10000 | G7: per year | H7: estimate
C8: Utilities (electricity only) | F8: =M8*1000*H8 -> 691200 | G8: per year | H8: ='Discounted cash flow'!D14 -> 0.02 | I8: per kWh | J8: 0.4 | K8: MW/ton, for ton per day: | L8: ='Discounted cash flow'!D5 -> 10 | M8: ='Discounted cash flow'!D12*L8*J8*24 -> 34560 | N8: MWh per year
C9: Direct Labor COL | F9: =F30 -> 240000 | G9: per year | H9: =F28 -> 3 | I9: Operators hired full time
C10: Fixed Costs | F10: neglected
C12: COMd components | D12: 0.18 | E12: *fixed cap = | F12: =D12*F5 -> 2160000 | H12: Modified | I12: =D12-0.016 -> 0.164 | J12: =F5*I12 -> 1968000 | L12: 0.02 FCI instead of 0.036 FCI for Overhead costs;
D13: 2.73 | E13: *dir labor= | F13: =D13*F9 -> 655200 | I13: =D13-0.15-0.077 -> 2.503 | J13: =I13*F9 -> 600720 | L13: 0.15 COL eliminated (Laboratory), lowered admin from 0.177 COL to 0.1 COL
D14: 1.23 | E14: *(Raw mat +Waste Treat+Util).= | F14: =D14*(F6+F7+F8) -> 874776 | I14: =D14 -> 1.23 | J14: =I14*SUM(F6:F8) -> 874776
J15: =SUM(J12:J14) -> 3443496 | L15: No R&D omit 0.05 COM, no Patents&Royalties omit 0.03 COM
C16: COMd | D16: Textbook factors | F16: =SUM(F12:F14) -> 3689976 | I16: COMd MODIFIED | J16: =J15-0.05*J15-0.03*J15 -> 3168016.32
C23: Direct Labor | E23: NOL= | F23: =(6.29+0.23*5)^0.5 -> 2.727636339 | G23: operators per shift (no solids, 5 processing steps), see Turton et al.
C25: 4.5 | D25: operators hired per NOL =
F26: 3 | G26: Operators hired per textbook, can override and enter manually, for Textbook formula is F23*C25
E28: set to | F28: ='Discounted cash flow'!D21 -> 3 | G28: Operators
F29: ='Discounted cash flow'!D22 -> 80000 | G29: per operator per year
F30: =F28*F29 -> 240000 | G30: per year

Sheet CEPCI
C3: Chemical Engineering Plant Cost Index CEPCI via "Chemical Engineering", behind paywall

Sheet CAPEX via paper Malmali et al
B9: Table 6 | D9: 34260000 | E9: Capex for | F9: 20000 | G9: metric tons NH3 per year
E10: or | F10: =F9/360 -> 55.55555556 | G10: metric tons per day, 360 days
E14: Scale down to | F14: 10 | G14: tons per day
F15: 360 | G15: days
F16: =F15*F14 -> 3600 | G16: metric tons NH3 per year
F17: =F9/F16 -> 5.555555556 | G17: fold less production
B19: Textbook 6/10th downscaling
B20: Scale down to 10 tpd, use straight forward six-tenths rule for entire Capex:
B21: Cost A/ Cost B = (Capacity A/Capacity B)^0.6
B22: (Capac A/Capac B)^0.6= | C22: =(F9/F16)^0.6 -> 2.797927758
B24: solve for Cost B:
B25: Cost B, 10 tpd: | C25: =D9/C22 -> 12244776.48 | D25: Capex 10tpd via 6/10 rule
B27: BUT: | C27: Per Paper, about 60% of Capex is electrolysis, where electrolysis Capex scales linearly with H2 production.
C28: For example, electrolysis only: half the hydrogen production, half the electrolysis CAPEX
B29: So electrolysis Capex | C29: =0.6*D9 -> 20556000 | D29: divide electrolysis Capex by | E29: =F17 -> 5.555555556 | F29: times less production: | H29: =C29/F17 -> 3700080 | I29: Capex Electrolysis 10 ton per day
B30: remainder Capex | C30: =D9-C29 -> 13704000 | D30: use 6/10 rule: | E30: =C22 -> 2.797927758 | F30: factor: | H30: =C30/E30 -> 4897910.591 | I30: Capex remainder 10 ton per day
B31: Total Capex 56 tons/day | C31: =SUM(C29:C30) -> 34260000 | G31: Tot | H31: =H29+H30 -> 8597990.591 | I31: Total Capex, down scaled, from 56 tons per day to 10 tons per day, 360 days
I32: correction for time below
B33: adjust for 2022 cost index:
B34: CEPCI 2020: | C34: 580 | D34: I1 2020
B35: CEPCI March 2022:: | C35: 812 | D35: I2
E36: https://www.nxtbook.com/accessintelligence/ChemicalEngineering/chemical-engineering-june-intl-2022/index.php?startid=48#/p/48
B37: C2=C1(I2/I1)
F39: Tot, corrected for 2022 | H39: =H31*(C35/C34) -> 12037186.83 | I39: Capex scaled from | K39: =F10 -> 55.55555556 | L39: tons per day to 10 tons per day

Sheet CAPEX Grundt et al 6 10 rule
D7: Grundt et al, 1981
D9: From graph:
B11: 500 tpd 2022: | D11: 500 | E11: metric tons NH3 per day
B12: =D12*E24/E23 -> 328080808.1 | D12: 120000000 | E12: in 1981, electrolysis based NH3
B13: using CEPCI
D14: scale down to 10 tpd, use six-tenths rule:
D15: Cost A/ Cost B = (Capacity A/Capacity B)^0.6=120,000,000/Cost B = (500/10)^0.6
D17: 50^0.6= | E17: =50^0.6 -> 10.45639553
D19: solve for Cost B:
D20: Cost B, 10 tpd: | E20: =D12/E17 -> 11476230
D22: adjust for 2021 cost index:
D23: CEPCI 1981: | E23: 297 | F23: I1
D24: CEPCI March 2022:: | E24: 812 | F24: I2
G25: https://www.nxtbook.com/accessintelligence/ChemicalEngineering/chemical-engineering-june-intl-2022/index.php?startid=48#/p/48
D26: C2=C1(I2/I1)
E29: =E20*(E24/E23) -> 31376090.09 | F29: 10 metric tons per day, 2022 | K29: Including:
F30: Capcost, direct + indirect see Table 3 from paper

Sheet H-B Capex from Ammoniaenergy.or
D5: https://www.ammoniaenergy.org/articles/the-capital-intensity-of-small-scale-ammonia-plants/
D7: Example
D8: Simplot $350MM 500 short ton per day, Rock Springs Wyoming, Casale tech and Linde, commissioned 2017, | N8: 500 | O8: short tons per day
N9: 454 | O9: metric tons per day | Q9: =365*0.9*N9 -> 149139 | R9: metric tons per year
M10: CAPEX | N10: 350 | O10: MM
K11: Scale to 10tpd | N11: CostA/CostB=(Cap A/Cap B)^0.6
N13: Cap A = | O13: 10
N14: CapB= | O14: =N9 -> 454
N16: (CapA/Capb)^0.6 | O16: =(O13/O14)^0.6 -> 0.1013366372
O17: =O16*N10 -> 35.46782301 | P17: MM | Q17: for 10 metric tons per day, conventional technology with steam reforming (?)
D20: Conventional NH3
D21: Upshot, small scale conventional) CAPEX 1900 to $2250 per ton per year
D22: Use | E22: 2000 | F22: $ per ton NH3 produced per year | J22: $/(ton NH3/year)
E23: 3600 | F23: ton NH3 per year produced
E25: =E22*E23 -> 7200000 | F25: for | G25: =E23/360 -> 10 | H25: ton per day at | J25: 360 | K25: days per year
D27: This is 2017 data
D30: CEPCI | E30: 2017 | F30: 568
E31: 2022 | F31: 812
E33: =(F31/F30)*E25 -> 10292957.75 | G33: =G25 -> 10 | H33: ton per day at | J33: 360 | K33: days per year
E34: Conventional H-B plant, 2022

Sheet CAPEX by DOE for electrolysis
C4: https://www.hydrogen.energy.gov/pdfs/20004-cost-electrolytic-hydrogen-production.pdf
C6: 2020
C8: Capcost PEM electrolyzer | F8: 1000 | G8: $/kW
C10: need | F10: 4 | G10: MW, 10tpd | H10: Pfromm paper 2017
E11: or | F11: =F10*1000 -> 4000 | G11: kW
F13: =F11*F8 -> 4000000 | G13: 2020 CAPEX for ten ton per day ammonia, electrolysis only
C15: Adjust for time
C16: CEPCI March 2022:: | F16: 812
C17: CEPCI 2020 | F17: 596.2 | H17: https://www.toweringskills.com/financial-analysis/cost-indices/
F19: =(F16/F17)*F13 -> 5447836.297 | G19: 2022 CAPEX for ten ton per day ammonia, PEM electrolysis "System Capex"

Sheet Reverse Osmosis CAPEX
C4: CAPEX
C5: 860 gallons per day for about $1500, https://www.globalindustrial.com/p/commercial-reverse-osmosis-system-for-boilerless-steamers-and-combi-ovens?infoParam.campaignId=T9F&gclid=EAIaIQobChMIyv7Amf2e-wIVcHtvBB2KLgrZEAQYBCABEgJFWfD_BwE
C6: so about $7500 CAPEX to cover the nominal need for the ten ton ammonia per day plant.
C8: Price of equipment | F8: 7500 | G8: 2022

Sheet Renewable H2 Tax Credit
C2: https://news.bloombergtax.com/daily-tax-report/the-new-clean-hydrogen-production-tax-credit-explained
C5: 0.6 | D5: per kg H2 guaranteed for 10 year
C7: =176/1000 -> 0.176 | D7: kgH2 per kg NH3
C9: =C7*C5 -> 0.1056 | D9: per kg NH3

Sheet CAPEX Haber Bosch
D5: Compressor, Reactor, NH3 condensation/recovery, circulation of unreacted syngas, heating/cooling/heat exchangers, valves and piping
D7: In progress

Sheet CAPEX NH3 storage
D6: In progress

Sheet CAPEX Instrument. and control
D6: In progress

Sheet Ammonia price history
B3: updates see https://farmdocdaily.illinois.edu
